[Event "Late-Titled-Tuesday-Blitz-March-05-2024"]
[Site "Chess.com"]
[Date "2024.03.05"]
[Round "11"]
[White "morte-negra"]
[Black "janhelmer03"]
[Result "0-1"]
[WhiteElo "2084"]
[BlackElo "2392"]
[TimeControl "180+1"]
[EndTime "16:00:26 PST"]
[Termination "janhelmer03 won by resignation"]

1. e4 {[%clk 0:03:00.9]} 1... c5 {[%clk 0:02:56.6]} 2. Nf3 {[%clk 0:03:00.8]}
2... d6 {[%clk 0:02:54.4]} 3. d4 {[%clk 0:03:01.4]} 3... cxd4 {[%clk 0:02:54.4]}
4. Nxd4 {[%clk 0:03:00.7]} 4... Nf6 {[%clk 0:02:55.3]} 5. Nc3 {[%clk 0:03:00.8]}
5... g6 {[%clk 0:02:55.4]} 6. Be3 {[%clk 0:02:57.7]} 6... Bg7 {[%clk 0:02:55.1]}
7. f3 {[%clk 0:02:58.2]} 7... O-O {[%clk 0:02:55.5]} 8. g4 {[%clk 0:02:58.3]}
8... Nc6 {[%clk 0:02:55]} 9. Qd2 {[%clk 0:02:56.3]} 9... d5 {[%clk 0:02:19]} 10.
g5 {[%clk 0:02:53.4]} 10... Nxd4 {[%clk 0:02:17.5]} 11. Bxd4 {[%clk 0:02:49.4]}
11... Nh5 {[%clk 0:02:16.3]} 12. exd5 {[%clk 0:02:48.3]} 12... Bxd4 {[%clk
0:02:14]} 13. Qxd4 {[%clk 0:02:47.9]} 13... e6 {[%clk 0:02:13]} 14. h4 {[%clk
0:02:25.4]} 14... exd5 {[%clk 0:02:10.9]} 15. Qxd5 {[%clk 0:02:13.7]} 15... Re8+
{[%clk 0:02:04.4]} 16. Kd2 {[%clk 0:01:41.4]} 16... Qb6 {[%clk 0:02:00.9]} 17.
Bd3 {[%clk 0:01:01.5]} 17... Qe3+ {[%clk 0:01:55.7]} 18. Kd1 {[%clk 0:00:56]}
18... Nf4 {[%clk 0:01:55]} 0-1

[Event "Late-Titled-Tuesday-Blitz-March-05-2024"]
[Site "Chess.com"]
[Date "2024.03.05"]
[Round "11"]
[White "KorolDimitriy75"]
[Black "HajiyevKanan"]
[Result "0-1"]
[WhiteElo "2399"]
[BlackElo "2539"]
[TimeControl "180+1"]
[EndTime "16:00:34 PST"]
[Termination "HajiyevKanan won on time"]

1. d4 {[%clk 0:03:00.9]} 1... d5 {[%clk 0:02:58.5]} 2. c4 {[%clk 0:03:00.9]}
2... c6 {[%clk 0:02:59.2]} 3. Nc3 {[%clk 0:03:01.5]} 3... Nf6 {[%clk 0:02:59.8]}
4. e3 {[%clk 0:03:01.8]} 4... a6 {[%clk 0:03:00.4]} 5. Nf3 {[%clk 0:03:01.5]}
5... Bg4 {[%clk 0:03:00.8]} 6. h3 {[%clk 0:02:53.4]} 6... Bxf3 {[%clk 0:02:59]}
7. Qxf3 {[%clk 0:02:54.3]} 7... e6 {[%clk 0:02:59.8]} 8. Bd3 {[%clk 0:02:52.1]}
8... Bb4 {[%clk 0:02:59.4]} 9. Bd2 {[%clk 0:02:51.3]} 9... O-O {[%clk
0:02:59.3]} 10. O-O {[%clk 0:02:47.7]} 10... a5 {[%clk 0:02:54.7]} 11. Rad1
{[%clk 0:02:24.7]} 11... Nbd7 {[%clk 0:02:53.5]} 12. e4 {[%clk 0:02:06.1]} 12...
Bxc3 {[%clk 0:02:53]} 13. Bxc3 {[%clk 0:02:05.5]} 13... dxe4 {[%clk 0:02:53.2]}
14. Bxe4 {[%clk 0:02:06.2]} 14... Nxe4 {[%clk 0:02:54.1]} 15. Qxe4 {[%clk
0:02:06.6]} 15... Qg5 {[%clk 0:02:49.1]} 16. Rd3 {[%clk 0:01:56.9]} 16... Nf6
{[%clk 0:02:48.5]} 17. Qe2 {[%clk 0:01:53.6]} 17... Rfd8 {[%clk 0:02:46.5]} 18.
Rg3 {[%clk 0:01:20.4]} 18... Qh5 {[%clk 0:02:44]} 19. Qe3 {[%clk 0:01:16.3]}
19... a4 {[%clk 0:02:40.9]} 20. d5 {[%clk 0:00:58.3]} 20... Qf5 {[%clk
0:02:38.3]} 21. Rf3 {[%clk 0:00:45.1]} 21... Qe4 {[%clk 0:02:35.8]} 22. Bxf6
{[%clk 0:00:41.5]} 22... Qxe3 {[%clk 0:02:35]} 23. fxe3 {[%clk 0:00:42.1]} 23...
gxf6 {[%clk 0:02:35.6]} 24. dxe6 {[%clk 0:00:30.9]} 24... fxe6 {[%clk
0:02:33.6]} 25. Rxf6 {[%clk 0:00:31.1]} 25... a3 {[%clk 0:02:31.8]} 26. b3
{[%clk 0:00:18.7]} 26... Rd2 {[%clk 0:02:31.6]} 27. R1f2 {[%clk 0:00:10.7]}
27... Rad8 {[%clk 0:02:31.2]} 28. Rf8+ {[%clk 0:00:08]} 28... Kg7 {[%clk
0:02:24.5]} 29. R8f7+ {[%clk 0:00:06.2]} 29... Kg6 {[%clk 0:02:25]} 30. R2f6+
{[%clk 0:00:03.2]} 30... Kg5 {[%clk 0:02:25.5]} 31. Rxe6 {[%clk 0:00:02.8]}
31... Rxa2 {[%clk 0:02:22.9]} 32. Kh2 {[%clk 0:00:01.5]} 32... Rdd2 {[%clk
0:02:21.6]} 0-1

[Event "Late-Titled-Tuesday-Blitz-March-05-2024"]
[Site "Chess.com"]
[Date "2024.03.05"]
[Round "11"]
[White "Felix-Rose"]
[Black "Qvalda"]
[Result "1-0"]
[WhiteElo "2314"]
[BlackElo "2421"]
[TimeControl "180+1"]
[EndTime "16:00:54 PST"]
[Termination "Felix-Rose won by resignation"]

1. Nf3 {[%clk 0:02:59.9]} 1... d5 {[%clk 0:02:59]} 2. e3 {[%clk 0:03:00.2]} 2...
Bh3 {[%clk 0:02:57.1]} 3. gxh3 {[%clk 0:02:59.6]} 3... Qd6 {[%clk 0:02:52.2]} 4.
d4 {[%clk 0:02:55.8]} 4... f6 {[%clk 0:02:51.9]} 5. c4 {[%clk 0:02:52.6]} 5...
c6 {[%clk 0:02:51.6]} 6. Nc3 {[%clk 0:02:51.5]} 6... e5 {[%clk 0:02:50.7]} 7.
dxe5 {[%clk 0:02:51.3]} 7... fxe5 {[%clk 0:02:50.4]} 8. cxd5 {[%clk 0:02:51.4]}
8... Nf6 {[%clk 0:02:45.2]} 9. dxc6 {[%clk 0:02:48.8]} 9... Nxc6 {[%clk
0:02:41.9]} 10. Qxd6 {[%clk 0:02:47.5]} 10... Bxd6 {[%clk 0:02:42.8]} 11. Bb5
{[%clk 0:02:46.7]} 11... Rc8 {[%clk 0:02:26.1]} 12. Ng5 {[%clk 0:02:44.2]} 12...
Ke7 {[%clk 0:02:25.3]} 13. Bd2 {[%clk 0:02:38.3]} 13... Nb4 {[%clk 0:02:17.7]}
14. Ke2 {[%clk 0:02:19.8]} 14... a6 {[%clk 0:02:15.4]} 15. Ba4 {[%clk
0:02:15.5]} 15... Bb8 {[%clk 0:01:48.6]} 16. Nge4 {[%clk 0:02:10.5]} 16... Nh5
{[%clk 0:01:47.5]} 17. Rhg1 {[%clk 0:02:06.8]} 17... g6 {[%clk 0:01:47]} 18. a3
{[%clk 0:02:04.3]} 18... Nc6 {[%clk 0:01:45.8]} 19. Nd5+ {[%clk 0:01:59.7]}
19... Ke6 {[%clk 0:01:43.5]} 20. Bb3 {[%clk 0:01:54.7]} 20... Kf5 {[%clk
0:01:40.8]} 21. Rg5+ {[%clk 0:01:45.4]} 21... Ke6 {[%clk 0:01:39.1]} 22. Nb6+
{[%clk 0:01:35]} 22... Ke7 {[%clk 0:01:35.5]} 23. Nxc8+ {[%clk 0:01:32.2]} 23...
Rxc8 {[%clk 0:01:36.4]} 24. Rc1 {[%clk 0:01:28.8]} 24... Rd8 {[%clk 0:01:34.3]}
25. Ba4 {[%clk 0:01:25]} 25... Ng7 {[%clk 0:01:29.3]} 26. Bxc6 {[%clk
0:01:19.2]} 26... bxc6 {[%clk 0:01:30.2]} 27. Bb4+ {[%clk 0:01:18.2]} 27... Ke8
{[%clk 0:01:28]} 28. Rxc6 {[%clk 0:01:17.3]} 28... Nf5 {[%clk 0:01:26.8]} 29.
Nf6+ {[%clk 0:01:11.7]} 29... Kf7 {[%clk 0:01:25.4]} 30. Nxh7 {[%clk 0:01:11.5]}
30... Rh8 {[%clk 0:01:20.3]} 31. Rgxg6 {[%clk 0:01:09.7]} 31... Nh4 {[%clk
0:01:14.1]} 32. Ng5+ {[%clk 0:01:08.6]} 32... Ke8 {[%clk 0:01:07.8]} 33. Rc8+
{[%clk 0:01:07.9]} 33... Kd7 {[%clk 0:01:08.1]} 34. Rxh8 {[%clk 0:01:07.7]} 1-0

[Event "Late-Titled-Tuesday-Blitz-March-05-2024"]
[Site "Chess.com"]
[Date "2024.03.05"]
[Round "11"]
[White "BillCoe"]
[Black "katharinareinecke"]
[Result "1-0"]
[WhiteElo "2131"]
[BlackElo "1978"]
[TimeControl "180+1"]
[EndTime "16:01:05 PST"]
[Termination "BillCoe won by resignation"]

1. e4 {[%clk 0:03:00.9]} 1... c6 {[%clk 0:02:58.1]} 2. d4 {[%clk 0:02:59.8]}
2... d5 {[%clk 0:02:58.1]} 3. Nc3 {[%clk 0:03:00.3]} 3... b5 {[%clk 0:02:57.1]}
4. exd5 {[%clk 0:02:58.5]} 4... b4 {[%clk 0:02:56.9]} 5. Ne4 {[%clk 0:02:53.7]}
5... cxd5 {[%clk 0:02:56.3]} 6. Nc5 {[%clk 0:02:51.5]} 6... e6 {[%clk
0:02:44.7]} 7. Bb5+ {[%clk 0:02:49.4]} 7... Bd7 {[%clk 0:02:43.6]} 8. Nxd7
{[%clk 0:02:48.5]} 8... Nxd7 {[%clk 0:02:43.1]} 9. Nf3 {[%clk 0:02:47.3]} 9...
a6 {[%clk 0:02:37.1]} 10. Ba4 {[%clk 0:02:46.1]} 10... Nf6 {[%clk 0:02:33.6]}
11. O-O {[%clk 0:02:44]} 11... Bd6 {[%clk 0:02:32.5]} 12. Bg5 {[%clk 0:02:41.5]}
12... O-O {[%clk 0:02:30.8]} 13. Bxd7 {[%clk 0:02:38.8]} 13... Qxd7 {[%clk
0:02:28.4]} 14. Bxf6 {[%clk 0:02:38.4]} 14... gxf6 {[%clk 0:02:28.7]} 15. Qd2
{[%clk 0:02:36.7]} 15... Kh8 {[%clk 0:02:23.8]} 16. Qh6 {[%clk 0:02:35]} 16...
Qe7 {[%clk 0:02:07.4]} 17. Rfe1 {[%clk 0:02:31.5]} 17... Rg8 {[%clk 0:02:05.3]}
18. Re3 {[%clk 0:02:29.4]} 18... Rg6 {[%clk 0:02:03.9]} 19. Qh4 {[%clk
0:02:26.2]} 19... Rag8 {[%clk 0:02:00.5]} 20. g3 {[%clk 0:02:26.1]} 20... Qf8
{[%clk 0:01:50.9]} 21. Qh3 {[%clk 0:02:20.9]} 21... Rh6 {[%clk 0:01:48.7]} 22.
Qg2 {[%clk 0:02:20.4]} 22... Qg7 {[%clk 0:01:44.8]} 23. c3 {[%clk 0:02:18.6]}
23... a5 {[%clk 0:01:41.7]} 24. Rc1 {[%clk 0:02:17.4]} 24... f5 {[%clk
0:01:35.8]} 25. cxb4 {[%clk 0:02:16]} 25... Bf4 {[%clk 0:01:27.6]} 26. bxa5
{[%clk 0:02:08.1]} 26... Bxe3 {[%clk 0:01:19]} 27. fxe3 {[%clk 0:02:09]} 27...
f6 {[%clk 0:00:58.9]} 28. b4 {[%clk 0:02:07.5]} 28... Rb8 {[%clk 0:00:53.3]} 29.
a3 {[%clk 0:02:05.4]} 29... Qb7 {[%clk 0:00:47.6]} 30. Rc5 {[%clk 0:01:58.8]}
30... Rc8 {[%clk 0:00:40.1]} 31. Qc2 {[%clk 0:01:58.1]} 31... Rxc5 {[%clk
0:00:34.7]} 32. Qxc5 {[%clk 0:01:59]} 32... Kg7 {[%clk 0:00:23.5]} 33. b5 {[%clk
0:01:57.5]} 33... e5 {[%clk 0:00:19.7]} 34. a6 {[%clk 0:01:54]} 34... Qa8 {[%clk
0:00:18.3]} 35. Qc6 {[%clk 0:01:49.8]} 35... Qxc6 {[%clk 0:00:16.9]} 36. bxc6
{[%clk 0:01:49.2]} 36... e4 {[%clk 0:00:14.8]} 37. a7 {[%clk 0:01:43.3]} 1-0

[Event "Late-Titled-Tuesday-Blitz-March-05-2024"]
[Site "Chess.com"]
[Date "2024.03.05"]
[Round "11"]
[White "guillembaches"]
[Black "ArtemDyachuk"]
[Result "0-1"]
[WhiteElo "2549"]
[BlackElo "2688"]
[TimeControl "180+1"]
[EndTime "16:01:11 PST"]
[Termination "ArtemDyachuk won on time"]

1. Nf3 {[%clk 0:03:00.9]} 1... Nf6 {[%clk 0:02:39.1]} 2. d4 {[%clk 0:03:00.9]}
2... g6 {[%clk 0:02:34.1]} 3. Bg5 {[%clk 0:03:00.5]} 3... Bg7 {[%clk 0:02:35]}
4. Nbd2 {[%clk 0:03:00.4]} 4... d5 {[%clk 0:02:32.5]} 5. e3 {[%clk 0:03:00.4]}
5... O-O {[%clk 0:02:33]} 6. Be2 {[%clk 0:03:00.7]} 6... c5 {[%clk 0:02:33.3]}
7. c3 {[%clk 0:03:00.6]} 7... Nc6 {[%clk 0:02:33.5]} 8. O-O {[%clk 0:02:59.7]}
8... h6 {[%clk 0:02:33.3]} 9. Bh4 {[%clk 0:02:59.4]} 9... g5 {[%clk 0:02:33]}
10. Bg3 {[%clk 0:02:59.5]} 10... Nh5 {[%clk 0:02:33.4]} 11. dxc5 {[%clk
0:02:53.7]} 11... e5 {[%clk 0:02:31.9]} 12. Bxe5 {[%clk 0:02:38]} 12... Nxe5
{[%clk 0:02:27]} 13. Nxe5 {[%clk 0:02:38]} 13... Bxe5 {[%clk 0:02:27.9]} 14.
Bxh5 {[%clk 0:02:38.2]} 14... Qc7 {[%clk 0:02:28.8]} 15. Nf3 {[%clk 0:02:24.3]}
15... Bg7 {[%clk 0:02:28]} 16. Qxd5 {[%clk 0:02:17.6]} 16... Be6 {[%clk
0:02:21.4]} 17. Qd6 {[%clk 0:02:16.3]} 17... Qa5 {[%clk 0:02:19.4]} 18. Nd4
{[%clk 0:01:57.3]} 18... Bc4 {[%clk 0:02:17.4]} 19. Rfd1 {[%clk 0:01:50.5]}
19... Rad8 {[%clk 0:02:16.4]} 20. Qe7 {[%clk 0:01:46]} 20... Qa6 {[%clk
0:02:16.4]} 21. Nf5 {[%clk 0:01:37.3]} 21... Bf6 {[%clk 0:02:11.6]} 22. Nxh6+
{[%clk 0:01:15.2]} 22... Kh7 {[%clk 0:02:06.8]} 23. Qe4+ {[%clk 0:00:37.5]}
23... Kxh6 {[%clk 0:02:05.8]} 24. Bf3 {[%clk 0:00:36]} 24... Be6 {[%clk
0:01:57.1]} 25. Qxb7 {[%clk 0:00:33.3]} 25... Qc4 {[%clk 0:01:56.6]} 26. c6
{[%clk 0:00:30.8]} 26... g4 {[%clk 0:01:55.7]} 27. c7 {[%clk 0:00:17.6]} 27...
Rxd1+ {[%clk 0:01:54.1]} 28. Rxd1 {[%clk 0:00:17]} 28... gxf3 {[%clk 0:01:52.1]}
29. Qxf3 {[%clk 0:00:17.1]} 29... Be5 {[%clk 0:01:50.5]} 30. Rd8 {[%clk
0:00:07.4]} 30... Bxh2+ {[%clk 0:01:47.4]} 31. Kxh2 {[%clk 0:00:01.6]} 31...
Qxc7+ {[%clk 0:01:46.6]} 0-1

[Event "Late-Titled-Tuesday-Blitz-March-05-2024"]
[Site "Chess.com"]
[Date "2024.03.05"]
[Round "11"]
[White "ThaBarWa"]
[Black "ninguno46"]
[Result "0-1"]
[WhiteElo "2369"]
[BlackElo "2495"]
[TimeControl "180+1"]
[EndTime "16:01:15 PST"]
[Termination "ninguno46 won on time"]

1. c4 {[%clk 0:02:54.3]} 1... e5 {[%clk 0:02:59.3]} 2. Nc3 {[%clk 0:02:54.1]}
2... Nf6 {[%clk 0:02:59.8]} 3. g3 {[%clk 0:02:54.1]} 3... h6 {[%clk 0:02:58.3]}
4. Bg2 {[%clk 0:02:53.7]} 4... Bb4 {[%clk 0:02:58.8]} 5. Qc2 {[%clk 0:02:47.3]}
5... O-O {[%clk 0:02:57.4]} 6. Nf3 {[%clk 0:02:47.2]} 6... Re8 {[%clk 0:02:56]}
7. O-O {[%clk 0:02:46.7]} 7... Bxc3 {[%clk 0:02:53.6]} 8. Qxc3 {[%clk
0:02:41.9]} 8... e4 {[%clk 0:02:53.6]} 9. Nd4 {[%clk 0:02:36.2]} 9... d6 {[%clk
0:02:53.7]} 10. b3 {[%clk 0:02:34.4]} 10... c5 {[%clk 0:02:47.6]} 11. Nc2 {[%clk
0:02:33.9]} 11... Nc6 {[%clk 0:02:45.6]} 12. Bb2 {[%clk 0:02:33.6]} 12... a5
{[%clk 0:02:37.4]} 13. e3 {[%clk 0:02:14.7]} 13... Re5 {[%clk 0:02:29.2]} 14. f4
{[%clk 0:02:08.3]} 14... exf3 {[%clk 0:02:15.1]} 15. Bxf3 {[%clk 0:02:08]} 15...
Bh3 {[%clk 0:02:13.6]} 16. d4 {[%clk 0:01:40.1]} 16... Rg5 {[%clk 0:02:11]} 17.
Bxc6 {[%clk 0:01:30.4]} 17... bxc6 {[%clk 0:02:07.5]} 18. dxc5 {[%clk
0:01:30.6]} 18... dxc5 {[%clk 0:01:58.6]} 19. Rf4 {[%clk 0:01:21.7]} 19... Qe7
{[%clk 0:01:53.8]} 20. Ne1 {[%clk 0:01:00.2]} 20... Rd8 {[%clk 0:01:46]} 21. Nf3
{[%clk 0:00:58.7]} 21... Rg4 {[%clk 0:01:41.3]} 22. Ne5 {[%clk 0:00:49.8]} 22...
Rxf4 {[%clk 0:01:34.9]} 23. exf4 {[%clk 0:00:46.5]} 23... Qe6 {[%clk 0:01:34.9]}
24. Nf3 {[%clk 0:00:39.3]} 24... Qe2 {[%clk 0:01:26.3]} 25. Nh4 {[%clk
0:00:29.1]} 25... Rd2 {[%clk 0:01:25.3]} 0-1

[Event "Late-Titled-Tuesday-Blitz-March-05-2024"]
[Site "Chess.com"]
[Date "2024.03.05"]
[Round "11"]
[White "jamengrand"]
[Black "RantomOpening"]
[Result "1-0"]
[WhiteElo "2496"]
[BlackElo "2575"]
[TimeControl "180+1"]
[EndTime "16:01:20 PST"]
[Termination "jamengrand won by resignation"]

1. e4 {[%clk 0:03:00.9]} 1... c5 {[%clk 0:02:59.3]} 2. Nf3 {[%clk 0:03:00.6]}
2... e6 {[%clk 0:02:59.6]} 3. d4 {[%clk 0:03:00.5]} 3... cxd4 {[%clk 0:03:00.5]}
4. Bg5 {[%clk 0:03:00.8]} 4... Bb4+ {[%clk 0:02:58.7]} 5. c3 {[%clk 0:03:00]}
5... dxc3 {[%clk 0:02:59.2]} 6. Nxc3 {[%clk 0:03:00.4]} 6... Be7 {[%clk
0:02:58.9]} 7. Bxe7 {[%clk 0:02:59.2]} 7... Nxe7 {[%clk 0:02:10.3]} 8. Qd6
{[%clk 0:02:54.8]} 8... O-O {[%clk 0:02:05.8]} 9. O-O-O {[%clk 0:02:52.3]} 9...
Nbc6 {[%clk 0:02:01.7]} 10. Kb1 {[%clk 0:02:52.3]} 10... Qb6 {[%clk 0:01:53.4]}
11. Bd3 {[%clk 0:02:43.9]} 11... Qa5 {[%clk 0:01:38.8]} 12. h4 {[%clk
0:02:33.1]} 12... b6 {[%clk 0:01:30.1]} 13. Rh3 {[%clk 0:02:31.2]} 13... Bb7
{[%clk 0:01:17.8]} 14. Rg3 {[%clk 0:02:30.2]} 14... Qc5 {[%clk 0:01:12.3]} 15.
Qxd7 {[%clk 0:02:22.8]} 15... Rab8 {[%clk 0:00:56.7]} 16. Rg5 {[%clk 0:02:07.1]}
16... Rfd8 {[%clk 0:00:55.5]} 17. Qc7 {[%clk 0:01:48.4]} 17... h6 {[%clk
0:00:54.5]} 18. Rxc5 {[%clk 0:01:45.5]} 18... bxc5 {[%clk 0:00:46.7]} 19. Bb5
{[%clk 0:01:39.2]} 19... Rdc8 {[%clk 0:00:37.2]} 20. Qg3 {[%clk 0:01:35.8]}
20... Rd8 {[%clk 0:00:31.1]} 21. Rxd8+ {[%clk 0:01:34.1]} 21... Rxd8 {[%clk
0:00:31.2]} 22. Qc7 {[%clk 0:01:34]} 22... Ba8 {[%clk 0:00:31]} 23. Bxc6 {[%clk
0:01:27.9]} 23... Nxc6 {[%clk 0:00:30.6]} 24. Ne5 {[%clk 0:01:28.2]} 24... Rf8
{[%clk 0:00:16.6]} 25. Nxc6 {[%clk 0:01:27.6]} 25... Kh7 {[%clk 0:00:14.2]} 26.
Ne7 {[%clk 0:01:25.1]} 26... f5 {[%clk 0:00:11.9]} 27. exf5 {[%clk 0:01:21.2]}
27... exf5 {[%clk 0:00:12.8]} 28. Qd6 {[%clk 0:01:21]} 28... Rf6 {[%clk
0:00:10.2]} 29. Qd8 {[%clk 0:01:21.2]} 1-0

[Event "Late-Titled-Tuesday-Blitz-March-05-2024"]
[Site "Chess.com"]
[Date "2024.03.05"]
[Round "11"]
[White "Rodalquilar"]
[Black "Fandorine"]
[Result "0-1"]
[WhiteElo "2788"]
[BlackElo "2907"]
[TimeControl "180+1"]
[EndTime "16:01:24 PST"]
[Termination "Fandorine won on time"]

1. d4 {[%clk 0:03:00.9]} 1... Nf6 {[%clk 0:02:58.8]} 2. Nf3 {[%clk 0:03:01.3]}
2... g6 {[%clk 0:02:59]} 3. Bf4 {[%clk 0:03:01.5]} 3... Bg7 {[%clk 0:02:58.8]}
4. e3 {[%clk 0:03:02.1]} 4... c5 {[%clk 0:02:57.9]} 5. c3 {[%clk 0:03:02]} 5...
Qb6 {[%clk 0:02:55.8]} 6. Qb3 {[%clk 0:03:01.7]} 6... d6 {[%clk 0:02:56.4]} 7.
h3 {[%clk 0:03:00.8]} 7... Be6 {[%clk 0:02:56.2]} 8. Qxb6 {[%clk 0:03:01.1]}
8... axb6 {[%clk 0:02:57.1]} 9. a3 {[%clk 0:03:01.8]} 9... Bd5 {[%clk
0:02:56.6]} 10. Nbd2 {[%clk 0:03:01.5]} 10... O-O {[%clk 0:02:55.7]} 11. Be2
{[%clk 0:03:01.4]} 11... Bc6 {[%clk 0:02:55.9]} 12. O-O {[%clk 0:03:01.3]} 12...
Nbd7 {[%clk 0:02:56.6]} 13. Bh2 {[%clk 0:03:01.3]} 13... b5 {[%clk 0:02:54.4]}
14. Rfe1 {[%clk 0:02:55.1]} 14... Nb6 {[%clk 0:02:51.6]} 15. dxc5 {[%clk
0:02:44.7]} 15... dxc5 {[%clk 0:02:51.1]} 16. Ne5 {[%clk 0:02:45.3]} 16... c4
{[%clk 0:02:48.7]} 17. Nxc6 {[%clk 0:02:39.6]} 17... bxc6 {[%clk 0:02:48.4]} 18.
Bf3 {[%clk 0:02:39.9]} 18... Rfc8 {[%clk 0:02:47.4]} 19. Ne4 {[%clk 0:02:26.2]}
19... Nfd5 {[%clk 0:02:38.7]} 20. Nc5 {[%clk 0:02:21.8]} 20... e6 {[%clk
0:02:36.4]} 21. e4 {[%clk 0:02:13.3]} 21... Nxc3 {[%clk 0:02:27.7]} 22. bxc3
{[%clk 0:01:33.1]} 22... Bxc3 {[%clk 0:02:28.6]} 23. Rac1 {[%clk 0:01:33.5]}
23... Bxe1 {[%clk 0:02:26.3]} 24. Rxe1 {[%clk 0:01:34.4]} 24... Rxa3 {[%clk
0:02:25.5]} 25. Be5 {[%clk 0:01:28.2]} 25... b4 {[%clk 0:02:19.2]} 26. Bd4
{[%clk 0:01:26.9]} 26... c3 {[%clk 0:02:06.6]} 27. Nd3 {[%clk 0:01:17.6]} 27...
Rd8 {[%clk 0:02:00.4]} 28. Bxb6 {[%clk 0:01:11.8]} 28... Rxd3 {[%clk 0:01:59.9]}
29. Be2 {[%clk 0:01:12.3]} 29... Rd2 {[%clk 0:01:54.9]} 30. Be3 {[%clk 0:01:12]}
30... Rxe2 {[%clk 0:01:37.6]} 31. Rxe2 {[%clk 0:01:12]} 31... b3 {[%clk
0:01:38.3]} 32. Kh2 {[%clk 0:00:11.8]} 32... b2 {[%clk 0:01:36.7]} 33. Re1
{[%clk 0:00:05.1]} 33... Ra1 {[%clk 0:01:35.9]} 34. Rd1 {[%clk 0:00:05.7]} 34...
Rxd1 {[%clk 0:01:35.4]} 0-1

[Event "Late-Titled-Tuesday-Blitz-March-05-2024"]
[Site "Chess.com"]
[Date "2024.03.05"]
[Round "11"]
[White "SergioMoralesG"]
[Black "AndresDelgado77"]
[Result "1-0"]
[WhiteElo "2451"]
[BlackElo "2287"]
[TimeControl "180+1"]
[EndTime "16:01:32 PST"]
[Termination "SergioMoralesG won on time"]

1. d4 {[%clk 0:03:00.9]} 1... Nf6 {[%clk 0:02:57.5]} 2. c4 {[%clk 0:03:00.1]}
2... d6 {[%clk 0:02:53.2]} 3. Nf3 {[%clk 0:02:59.7]} 3... g6 {[%clk 0:02:45.9]}
4. Nc3 {[%clk 0:02:58.9]} 4... Bf5 {[%clk 0:02:44.4]} 5. Nh4 {[%clk 0:02:53.8]}
5... Bd7 {[%clk 0:02:38.7]} 6. e4 {[%clk 0:02:54]} 6... e5 {[%clk 0:02:31.1]} 7.
dxe5 {[%clk 0:02:45.1]} 7... dxe5 {[%clk 0:02:29.6]} 8. Bg5 {[%clk 0:02:45.8]}
8... h6 {[%clk 0:02:21]} 9. Be3 {[%clk 0:02:35]} 9... Bb4 {[%clk 0:02:13.5]} 10.
Nf3 {[%clk 0:02:23.5]} 10... Nxe4 {[%clk 0:02:10.5]} 11. Qb3 {[%clk 0:02:18]}
11... Na6 {[%clk 0:01:56.3]} 12. Nxe5 {[%clk 0:02:11.2]} 12... Qe7 {[%clk
0:01:40.7]} 13. Nxd7 {[%clk 0:02:08.6]} 13... Qxd7 {[%clk 0:01:35.8]} 14. Rd1
{[%clk 0:02:03.4]} 14... Qe7 {[%clk 0:01:19.1]} 15. Be2 {[%clk 0:02:02.7]} 15...
f5 {[%clk 0:00:52.3]} 16. O-O {[%clk 0:01:56.6]} 16... Bxc3 {[%clk 0:00:25.9]}
17. Qxb7 {[%clk 0:01:50.4]} 17... O-O {[%clk 0:00:24.7]} 18. Qxa6 {[%clk
0:01:34.8]} 18... Rf6 {[%clk 0:00:11.8]} 19. Qb7 {[%clk 0:01:31.7]} 19... Re8
{[%clk 0:00:06.6]} 20. bxc3 {[%clk 0:01:12.9]} 20... Nxc3 {[%clk 0:00:06.5]} 21.
Rde1 {[%clk 0:01:13.1]} 21... Nxe2+ {[%clk 0:00:05]} 22. Rxe2 {[%clk 0:01:13]}
22... f4 {[%clk 0:00:05.3]} 23. Bd4 {[%clk 0:01:10.6]} 23... Qxe2 {[%clk
0:00:01.9]} 24. Bxf6 {[%clk 0:01:10.6]} 24... f3 {[%clk 0:00:01.9]} 25. Qxf3
{[%clk 0:01:08.8]} 1-0